bitfinex/quotes_SOLUSD_20260217
["timestamp","ask_amount","ask_price","bid_price","bid_amount"]
[1771330651379,0.46360142,85.379,85.34,4.31952975]
[1771330651380,0.46360142,85.377,85.343,0.46181785]
[1771330651579,0.46360142,85.408,85.371,0.46181785]
[1771330651973,0.46360142,85.399,85.371,0.46181785]
[1771330652164,0.46360142,85.399,85.36,4.31952975]
[1771330652762,4.31952975,85.4,85.342,41.01145976]
[1771330652763,0.46360142,85.379,85.343,0.46181785]
[1771330654674,0.46360142,85.377,85.344,11.71728533]
[1771330654871,0.46360142,85.369,85.344,11.71728533]
[1771330658985,0.46360142,85.369,85.339,11.71797185]
[1771330659184,0.46360142,85.369,85.34,4.31952975]
[1771330659381,0.46360142,85.367,85.339,12.1797897]
[1771330659593,4.31952975,85.36,85.335,11.7184295]
[1771330659782,0.46360142,85.359,85.335,11.7184295]
[1771330661301,0.46360142,85.357,85.331,11.71900348]
[1771330661790,0.46360142,85.349,85.322,11.7203066]
[1771330662576,0.46360142,85.349,85.322,12.18212445]
[1771330663283,0.46360142,85.349,85.314,0.46181785]
[1771330666800,0.47381422,85.348,85.316,0.47253287]
[1771330667984,0.47381422,85.348,85.318,0.47253287]
[1771330668890,11.71617294,85.353,85.321,0.47253287]
[1771330669481,0.47381422,85.352,85.321,0.47253287]
[1771330670082,0.47381422,85.352,85.323,0.47253287]
[1771330671898,0.47381422,85.352,85.325,0.4874625]
[1771330672298,0.48819874,85.35,85.325,0.4874625]
[1771330675503,0.48819874,85.348,85.32,12.2079789]
[1771330675692,0.48819874,85.348,85.321,0.4874625]
[1771330681308,0.48819874,85.348,85.322,11.7203066]
[1771330681504,0.48819874,85.348,85.323,0.4874625]
[1771330681694,0.48819874,85.354,85.323,0.4874625]
[1771330682199,0.48819874,85.349,85.323,0.4874625]
[1771330683305,0.48819874,85.358,85.331,0.4874625]
[1771330683487,0.48819874,85.364,85.331,0.4874625]
[1771330685794,0.48819874,85.362,85.333,0.4874625]
[1771330686604,0.48819874,85.369,85.34,4.32121691]
[1771330686812,0.48819874,85.369,85.341,0.4874625]
[1771330687514,0.48819874,85.377,85.351,0.4874625]
[1771330687725,4.32121691,85.39,85.332,41.01626587]
[1771330687726,0.48819874,85.408,85.371,0.4874625]
[1771330688009,0.48819874,85.408,85.37,4.32121691]
[1771330688010,0.48819874,85.406,85.373,0.4874625]
[1771330688399,11.69684088,85.407,85.373,0.4874625]
[1771330689514,11.69684088,85.407,85.375,0.4874625]
[1771330690409,0.48819874,85.406,85.375,0.4874625]
[1771330691719,0.48819874,85.404,85.375,0.4874625]
[1771330693016,0.48819874,85.402,85.376,11.71289355]
[1771330696901,0.48819874,85.402,85.375,0.4826131]
[1771330698119,0.1,85.41,85.381,0.4826131]
[1771330698323,0.1,85.41,85.38,4.32121691]
[1771330698324,0.1,85.41,85.391,0.4826131]
[1771330698712,0.56006878,85.41,85.391,0.4826131]
[1771330699114,0.56006878,85.41,85.392,12.19331199]
[1771330699317,0.46006878,85.408,85.381,11.71220763]
[1771330699624,0.46006878,85.408,85.382,0.4826131]
[1771330700425,0.1,85.41,85.382,0.4826131]
[1771330701214,0.56006878,85.41,85.384,0.4826131]
[1771330701613,4.42121691,85.41,85.384,0.4826131]
[1771330701821,0.46006878,85.409,85.384,0.4826131]
[1771330702613,0.46006878,85.409,85.383,11.71193328]
[1771330703611,0.46006878,85.409,85.38,0.4826131]
[1771330703911,0.46006878,85.409,85.381,0.4826131]
[1771330704823,0.1,85.41,85.381,0.4826131]
[1771330705129,0.46006878,85.409,85.381,0.4826131]
[1771330705329,0.1,85.41,85.391,0.4826131]
[1771330705712,0.1,85.41,85.39,4.32121691]
[1771330705713,0.1,85.41,85.393,0.4826131]
[1771330707029,0.56006878,85.41,85.393,0.4826131]
[1771330708106,0.56006878,85.41,85.394,11.71042461]
[1771330709339,0.56006878,85.41,85.395,0.4826131]
[1771330709515,0.1,85.41,85.395,0.4826131]
[1771330710226,0.1,85.41,85.379,29.28120498]
[1771330710227,0.46006878,85.409,85.396,11.71015035]
[1771330710433,0.46006878,85.409,85.387,11.71138463]
[1771330710823,0.46006878,85.409,85.387,12.19399773]
[1771330711241,0.46006878,85.409,85.387,11.71138463]
[1771330711618,0.46006878,85.409,85.376,0.4826131]
[1771330711818,0.46006878,85.409,85.377,12.19533014]
[1771330712019,0.46006878,85.409,85.378,0.4826131]
[1771330712438,11.70850505,85.408,85.377,11.71271704]
[1771330712615,0.46006878,85.407,85.377,11.71271704]
[1771330713339,0.46006878,85.399,85.375,19.06]
[1771330713522,0.46006878,85.399,85.373,11.71323122]
[1771330714634,0.46006878,85.399,85.374,0.4826131]
[1771330715525,0.46006878,85.399,85.375,11.71303074]
[1771330715838,0.46006878,85.399,85.376,0.4826131]
[1771330721447,0.46006878,85.399,85.375,11.71303074]
[1771330721448,0.46006878,85.389,85.363,11.71467731]
[1771330721640,11.7098761,85.398,85.364,0.4826131]
[1771330721832,0.46006878,85.397,85.364,0.4826131]
[1771330722141,0.46006878,85.389,85.359,0.4826131]
[1771330722349,0.46006878,85.379,85.354,0.4826131]
[1771330722846,0.46006878,85.379,85.349,0.4826131]
[1771330723632,0.46006878,85.377,85.349,0.4826131]
[1771330728127,11.71289355,85.376,85.343,0.45665598]
[1771330728332,0.48402146,85.369,85.343,0.45665598]
[1771330732260,0.48402146,85.369,85.345,0.4515441]
[1771330734340,0.46409602,85.367,85.341,0.4515441]
[1771330739658,0.46409602,85.365,85.342,0.4515441]
[1771330741763,0.46409602,85.363,85.342,0.4515441]
[1771330745856,11.71454008,85.364,85.34,11.71779782]
[1771330745857,4.32006663,85.38,85.344,0.4515441]
[1771330746057,0.46409602,85.379,85.344,0.4515441]
[1771330747571,0.46409602,85.369,85.344,0.4515441]
[1771330748370,0.46409602,85.367,85.344,0.4515441]
[1771330748864,0.46409602,85.367,85.339,11.71794113]
[1771330749047,0.46409602,85.359,85.339,11.71794113]
[1771330750183,0.46409602,85.359,85.335,0.4515441]
[1771330752362,0.46409602,85.359,85.337,0.4515441]
[1771330754054,0.46409602,85.359,85.339,0.4515441]
[1771330756077,0.46409602,85.359,85.341,0.46591525]
[1771330757178,0.45371429,85.364,85.341,0.46591525]
[1771330758278,0.45371429,85.364,85.343,0.46591525]
[1771330760877,12.1683916,85.363,85.343,0.46591525]
[1771330761076,0.45371429,85.362,85.343,0.46591525]
[1771330766161,0.45371429,85.362,85.336,19.14]
[1771330766162,0.45371429,85.366,85.345,0.46591525]
[1771330767182,0.45371429,85.366,85.341,0.46591525]
[1771330768078,0.45371429,85.364,85.341,0.46591525]
[1771330775101,0.45371429,85.364,85.343,0.46591525]
[1771330776200,0.45371429,85.362,85.343,0.46591525]
[1771330780604,0.45371429,85.362,85.338,0.46591525]
[1771330782694,0.45371429,85.36,85.338,0.46591525]
[1771330782893,0.45371429,85.36,85.339,12.1838871]
[1771330786211,0.45371429,85.36,85.34,0.45245171]
[1771330787906,0.45166487,85.349,85.281,0.45245171]
[1771330788106,0.45166487,85.339,85.301,0.45245171]
[1771330788487,0.45166487,85.337,85.303,0.45245171]
[1771330788698,0.45166487,85.329,85.303,0.45245171]
[1771330789603,0.45166487,85.337,85.303,0.45245171]
[1771330792808,0.46936368,85.335,85.304,11.7227797]
[1771330793010,0.46936368,85.329,85.298,0.45435359]
[1771330794490,0.46936368,85.329,85.301,0.45435359]
[1771330795115,0.46936368,85.329,85.303,0.45435359]
[1771330796412,4.32006663,85.34,85.303,0.45435359]
[1771330797394,11.71797185,85.339,85.305,0.45435359]
[1771330797604,11.71752632,85.343,85.311,0.45435359]
[1771330797998,5.36086188,85.368,85.304,41.02972896]
[1771330797999,4.32006663,85.36,85.321,0.45435359]
[1771330798407,0.46936368,85.365,85.331,0.45435359]
[1771330799094,0.46936368,85.359,85.331,0.45435359]
[1771330799520,0.46936368,85.359,85.333,0.45435359]
[1771330800520,0.46936368,85.359,85.334,11.71865844]
[1771330800704,0.46936368,85.359,85.335,0.45435359]
[1771330800904,0.46936368,85.367,85.335,0.45435359]
[1771330801214,0.46936368,85.367,85.334,41.01530455]
[1771330801215,0.46936368,85.373,85.341,0.45435359]
[1771330801422,0.46936368,85.379,85.341,0.45435359]
[1771330803606,0.46936368,85.379,85.343,0.45435359]
[1771330803801,0.46936368,85.379,85.351,0.45435359]
[1771330804618,12.18188902,85.379,85.351,0.45435359]
[1771330804805,0.46936368,85.378,85.351,0.45435359]
[1771330810831,0.46936368,85.378,85.352,11.71618708]
[1771330811022,0.46936368,85.376,85.353,0.45435359]
[1771330812916,0.46936368,85.376,85.355,0.45435359]
[1771330818833,0.46936368,85.376,85.357,0.47262624]
[1771330819036,0.46936368,85.376,85.343,0.47262624]
[1771330819913,0.46936368,85.376,85.344,0.47262624]
[1771330820415,0.46936368,85.376,85.351,0.47262624]
[1771330821027,0.46936368,85.376,85.352,11.71618708]
[1771330821227,0.46936368,85.376,85.353,0.47262624]
[1771330822328,0.45436155,85.388,85.36,4.31856125]
[1771330822530,4.41856125,85.45,85.381,0.47262624]
[1771330822531,0.45436155,85.413,85.381,0.47262624]
[1771330822842,0.45436155,85.426,85.391,0.47262624]
[1771330823024,0.45436155,85.409,85.386,0.47262624]
[1771330824014,0.45436155,85.408,85.386,0.47262624]
[1771330826241,0.45436155,85.408,85.381,19.18]
[1771330826242,0.45436155,85.408,85.388,0.47262624]
[1771330827350,0.45436155,85.408,85.389,11.71111033]
[1771330827521,0.45436155,85.408,85.389,12.18373657]
[1771330828024,0.45436155,85.408,85.39,0.47262624]
[1771330833460,0.45436155,85.409,85.381,19.18]
[1771330833760,0.45436155,85.408,85.377,12.18526714]
[1771330833946,0.45436155,85.408,85.378,0.47262624]
[1771330834330,0.45436155,85.389,85.341,0.47262624]
[1771330834662,0.45436155,85.379,85.346,0.47262624]
[1771330835028,0.45436155,85.379,85.345,29.29283848]
[1771330835029,0.45436155,85.379,85.348,0.47262624]
[1771330836331,0.45436155,85.378,85.348,0.47262624]
[1771330836938,0.45436155,85.394,85.35,0.47262624]
[1771330837138,4.31856125,85.39,85.35,0.47262624]
[1771330837342,4.31856125,85.39,85.351,0.47262624]
[1771330837539,4.7729228,85.39,85.351,0.47262624]
[1771330837739,0.45436155,85.389,85.351,0.47262624]
[1771330838630,0.45436155,85.379,85.351,0.47262624]
[1771330839232,0.45436155,85.389,85.353,0.47262624]
[1771330839443,12.16547188,85.389,85.353,0.47262624]
[1771330839649,0.45436155,85.389,85.353,0.47262624]
[1771330840153,0.45436155,85.389,85.36,4.31856125]
[1771330840369,0.45436155,85.389,85.361,0.47262624]
[1771330841436,0.45436155,85.389,85.362,11.71481455]
[1771330841635,0.45436155,85.389,85.363,0.47262624]
[1771330844254,0.45436155,85.395,85.365,0.47262624]
[1771330844465,11.71042461,85.394,85.365,0.47262624]
[1771330844761,0.45055813,85.389,85.365,0.47262624]
[1771330846741,0.45055813,85.387,85.354,0.4721613]
[1771330847038,0.45055813,85.387,85.355,0.4721613]
[1771330851866,0.45390518,85.385,85.356,11.71563803]
[1771330852169,0.45390518,85.385,85.357,0.49420975]
[1771330857445,4.31856125,85.38,85.354,19.2]
[1771330857762,0.45390518,85.379,85.354,19.2]
[1771330858262,0.45390518,85.379,85.351,0.49420975]
[1771330858662,4.31856125,85.38,85.351,0.49420975]
[1771330858663,0.45390518,85.377,85.351,0.49420975]
[1771330860364,11.71289355,85.376,85.351,0.49420975]
[1771330860669,0.45390518,85.369,85.347,11.71673971]
[1771330860849,0.45390518,85.369,85.347,12.21094946]
[1771330861050,0.45390518,85.369,85.348,0.49420975]
[1771330863368,0.45390518,85.369,85.348,11.71673618]
[1771330863559,0.45390518,85.369,85.349,0.49420975]
[1771330868476,12.16718078,85.374,85.351,0.49420975]
[1771330869146,0.45390518,85.373,85.351,0.49420975]
[1771330874971,4.31980751,85.37,85.351,0.49420975]
[1771330875174,0.46990531,85.369,85.351,0.49420975]
[1771330875763,11.71344234,85.372,85.328,0.49153507]
[1771330875764,0.46990531,85.359,85.328,0.49153507]
[1771330875970,0.46990531,85.349,85.328,0.49153507]
[1771330876775,0.46990531,85.339,85.32,19.2]
[1771330876978,0.46990531,85.339,85.32,19.69153507]
[1771330877280,0.46990531,85.346,85.321,0.49153507]
[1771330877777,12.18696568,85.346,85.321,0.49153507]
[1771330879477,0.46990531,85.359,85.323,0.49153507]
[1771330879782,0.46990531,85.354,85.323,0.49153507]
[1771330881279,0.46990531,85.359,85.323,0.49153507]
[1771330881483,9.9781544,85.383,85.323,0.49153507]
[1771330881484,4.78971282,85.36,85.323,0.49153507]
[1771330881782,12.18513158,85.359,85.325,0.49153507]
[1771330882358,11.71522627,85.359,85.325,0.49153507]
[1771330882584,0.46990531,85.358,85.325,0.49153507]
[1771330883686,11.71522627,85.359,85.327,0.49153507]
[1771330884573,4.31980751,85.36,85.327,0.49153507]
[1771330884574,11.71536352,85.358,85.327,0.49153507]
[1771330885481,12.18526883,85.358,85.327,0.49153507]
[1771330885676,0.46990531,85.357,85.327,0.49153507]
[1771330887586,11.71563803,85.356,85.328,11.71948246]
[1771330887789,12.18554334,85.356,85.329,0.49153507]
[1771330888092,0.46990531,85.355,85.329,0.49153507]
[1771330889288,16.50491184,85.36,85.329,0.49153507]
[1771330890691,0.46990531,85.359,85.331,0.49153507]
[1771330891893,0.46990531,85.361,85.333,0.49153507]
[1771330893596,0.46990531,85.368,85.333,0.49153507]
[1771330894178,11.71305287,85.375,85.341,0.49153507]
[1771330895073,11.71305287,85.375,85.351,0.49153507]
[1771330896389,12.18295818,85.375,85.351,0.49153507]
[1771330900792,0.46990531,85.396,85.36,4.31980751]
[1771330901097,0.46990531,85.396,85.361,0.49153507]
[1771330902898,0.46990531,85.394,85.363,0.49153507]
[1771330903276,0.46990531,85.411,85.371,0.49153507]
[1771330903477,11.70786222,85.413,85.381,0.49153507]
[1771330903883,0.46990531,85.409,85.381,0.49153507]
[1771330905595,0.1,85.41,85.391,0.45411945]
[1771330906184,11.70562689,85.429,85.401,0.45411945]
[1771330906797,0.46990531,85.428,85.401,0.45411945]
[1771330909288,11.70590094,85.427,85.401,0.45411945]
[1771330909485,11.70590094,85.427,85.403,0.45411945]
[1771330910995,12.17580625,85.427,85.403,0.45411945]
[1771330911186,11.70590094,85.427,85.403,0.45411945]
[1771330911387,11.706175,85.425,85.403,0.45411945]
[1771330913408,0.46683178,85.425,85.403,0.45411945]
[1771330915805,0.46683178,85.419,85.391,19.2]
[1771330916004,0.46683178,85.419,85.392,0.46644917]
[1771330916490,0.46683178,85.419,85.387,0.46644917]
[1771330917206,0.46683178,85.419,85.389,0.46644917]
[1771330917591,4.31980751,85.41,85.389,0.46644917]
[1771330917903,0.46683178,85.409,85.389,0.46644917]
[1771330919307,0.46683178,85.407,85.376,0.46644917]
[1771330919616,0.46683178,85.407,85.371,0.46644917]
[1771330920194,0.46683178,85.405,85.373,0.46644917]
[1771330920796,0.46683178,85.414,85.381,0.46644917]
[1771330921007,4.31980751,85.41,85.381,0.46644917]
[1771330921312,4.31980751,85.39,85.362,11.71481455]
[1771330921495,0.46683178,85.389,85.363,0.46644917]
[1771330921901,4.31980751,85.4,85.363,0.46644917]
[1771330921902,0.46683178,85.399,85.363,0.46644917]
[1771330922291,0.46683178,85.397,85.365,0.46644917]
[1771330924707,0.46683178,85.389,85.365,0.46644917]
[1771330924900,0.46683178,85.389,85.366,12.1807148]
[1771330925105,0.46683178,85.389,85.367,0.46644917]
[1771330927909,11.71115225,85.389,85.367,0.46644917]
[1771330928099,0.46683178,85.388,85.367,0.46644917]
[1771330930304,0.46683178,85.386,85.36,0.46644917]
[1771330931725,0.46683178,85.384,85.36,0.46644917]
[1771330934724,12.1784282,85.383,85.36,0.46644917]
[1771330935429,0.46649492,85.382,85.36,0.46644917]
[1771330935731,0.46649492,85.379,85.36,0.46644917]
[1771330936724,18.06,85.409,85.362,0.46016386]
[1771330936725,0.46649492,85.396,85.362,0.46016386]
[1771330936933,4.31742306,85.4,85.362,0.46016386]
[1771330937120,58.53187054,85.424,85.361,11.71495179]
[1771330937121,4.31742306,85.42,85.381,0.46016386]
[1771330937326,11.70658612,85.422,85.361,41.00233127]
[1771330937327,11.70658612,85.422,85.391,0.46016386]
[1771330937836,12.17308104,85.422,85.391,0.46016386]
[1771330938333,0.46649492,85.421,85.391,0.46016386]
[1771330939346,0.46649492,85.421,85.393,0.46016386]
[1771330939347,11.70686022,85.42,85.393,0.46016386]
[1771330940824,0.46649492,85.429,85.393,0.46016386]
[1771330943731,11.70576391,85.428,85.394,11.71042461]
[1771330943938,11.70576391,85.428,85.395,0.46016386]
[1771330944136,12.17225883,85.428,85.395,0.46016386]
[1771330944322,0.46649492,85.427,85.395,0.46016386]
[1771330944724,11.70603797,85.426,85.397,0.46016386]
[1771330945624,11.70603797,85.426,85.396,11.71015035]
[1771330945625,0.1,85.43,85.401,0.46016386]
[1771330948845,0.1,85.43,85.403,0.46016386]
[1771330950848,12.27205627,85.43,85.405,0.46016386]
[1771330951056,11.80556135,85.43,85.405,0.46016386]
[1771330951356,0.46649492,85.429,85.405,0.46016386]
[1771330952565,0.46649492,85.429,85.4,4.31742306]
[1771330952566,0.46649492,85.429,85.407,0.46016386]
[1771330952857,0.1,85.43,85.407,0.46016386]
[1771330956159,0.1,85.43,85.408,11.70850505]
[1771330956367,0.1,85.43,85.409,0.46016386]
[1771330957645,0.1,85.44,85.421,0.46016386]
[1771330957852,0.46649492,85.439,85.415,19.24]
[1771330958244,0.46649492,85.439,85.413,0.46016386]
[1771330958847,0.46649492,85.438,85.413,0.46016386]
[1771330960487,0.46649492,85.436,85.413,0.46016386]
[1771330961367,0.46649492,85.429,85.406,30.94869726]
[1771330961681,0.46649492,85.429,85.407,0.46016386]
[1771330965681,0.47865105,85.428,85.407,0.46016386]
[1771330971462,0.47865105,85.428,85.409,0.49517254]
[1771330973991,0.47513303,85.433,85.407,0.49517254]
[1771330974284,0.47513303,85.419,85.392,0.49517254]
[1771330974678,0.47513303,85.419,85.386,11.71141575]
[1771330974984,0.47513303,85.419,85.387,0.49517254]
[1771330977389,0.47513303,85.417,85.389,0.49517254]
[1771330979391,11.70740844,85.416,85.389,0.49517254]
[1771330979689,0.47513303,85.415,85.389,0.49517254]
[1771330979894,0.47513303,85.415,85.384,12.20685438]
[1771330980278,0.47513303,85.415,85.384,11.71168184]
[1771330980486,0.47513303,85.415,85.385,0.49517254]
[1771330980683,0.47513303,85.409,85.38,0.49517254]
[1771330980884,11.70740844,85.416,85.366,11.71422036]
[1771330980885,0.47513303,85.399,85.366,11.71422036]
[1771330981093,0.47513303,85.399,85.367,0.49517254]
[1771330981882,4.79255609,85.39,85.367,0.49517254]
[1771330982098,0.47513303,85.389,85.359,12.21031954]
[1771330982299,0.47513303,85.389,85.359,11.715147]
[1771330983393,0.47513303,85.387,85.358,0.49517254]
[1771330986709,0.47513303,85.385,85.36,0.49517254]
[1771330990004,11.71152179,85.386,85.362,0.49517254]
[1771330990206,0.47513303,85.395,85.362,0.49517254]
[1771330991611,0.47513303,85.395,85.364,0.49517254]
[1771330992103,0.47513303,85.393,85.364,0.49517254]
[1771330994608,0.47186907,85.389,85.366,0.4580579]
[1771330997594,0.47186907,85.389,85.368,0.4580579]
[1771330998329,0.47186907,85.379,85.33,0.4580579]
[1771330998620,0.47186907,85.369,85.331,0.4580579]
[1771330999592,0.47186907,85.359,85.333,0.4580579]
[1771331002427,0.47186907,85.357,85.328,0.4580579]
[1771331004719,0.47186907,85.349,85.329,11.71934512]
[1771331004911,0.47186907,85.349,85.329,12.17740302]
[1771331005216,4.3180156,85.37,85.331,0.4580579]
[1771331005413,4.3180156,85.37,85.341,0.4580579]
[1771331005614,0.47186907,85.378,85.341,0.4580579]
[1771331009719,0.47186907,85.384,85.351,0.4580579]
[1771331011909,0.47186907,85.384,85.353,0.4580579]
[1771331014312,0.47186907,85.384,85.35,4.3180156]
[1771331014313,0.47186907,85.384,85.355,0.4580579]
[1771331015620,0.47186907,85.384,85.36,4.3180156]
[1771331015830,0.47186907,85.389,85.361,0.4580579]
[1771331016919,0.47186907,85.399,85.363,0.4580579]
[1771331017105,0.47186907,85.399,85.362,11.71481455]
[1771331017106,0.47186907,85.399,85.371,0.4580579]
[1771331020932,0.47186907,85.399,85.373,0.4580579]
[1771331023738,0.47186907,85.395,85.368,0.4580579]
[1771331024035,0.47186907,85.399,85.371,0.4580579]
[1771331026849,0.47186907,85.399,85.373,0.45642599]
[1771331028544,0.47798696,85.397,85.373,0.45642599]
[1771331029024,0.47798696,85.397,85.365,0.45642599]
[1771331031246,11.71015035,85.396,85.367,0.48089823]
[1771331031439,0.47025082,85.395,85.367,0.48089823]
[1771331032942,0.47025082,85.395,85.369,0.48089823]
[1771331034434,0.47025082,85.393,85.369,0.48089823]
[1771331038750,0.47025082,85.393,85.371,0.48089823]
[1771331044151,0.47025082,85.393,85.372,11.71344234]
[1771331044460,0.47025082,85.393,85.373,0.48089823]
[1771331044971,4.3180156,85.38,85.351,0.48089823]
[1771331045140,0.47025082,85.379,85.351,0.48089823]
[1771331046538,0.47025082,85.379,85.353,0.48089823]
[1771331047761,0.47025082,85.379,85.355,0.48089823]
[1771331049964,0.47025082,85.379,85.357,0.48089823]
[1771331052358,0.47025082,85.379,85.358,11.71536352]
[1771331052551,0.47025082,85.379,85.359,0.48089823]
[1771331055443,0.47385995,85.378,85.359,0.48089823]
[1771331064164,0.47385995,85.376,85.353,0.46926568]
[1771331064355,4.31854365,85.37,85.341,0.46926568]
[1771331064557,0.47385995,85.369,85.342,0.46926568]
[1771331067277,0.47385995,85.367,85.342,0.46926568]
[1771331069261,11.71426563,85.366,85.342,0.46926568]
[1771331069468,12.18812558,85.366,85.342,0.46926568]
[1771331070665,12.18812558,85.366,85.329,19.34]
[1771331070666,0.47385995,85.359,85.329,0.46926568]
[1771331070877,0.47385995,85.349,85.324,0.46926568]
[1771331075389,0.47385995,85.347,85.324,0.46926568]
[1771331076476,11.71701075,85.346,85.324,0.46926568]
[1771331076673,0.47385995,85.345,85.324,0.46926568]
[1771331077579,0.47385995,85.345,85.319,0.46926568]
[1771331077877,0.47385995,85.339,85.319,0.46926568]
[1771331078069,0.47385995,85.339,85.315,0.46926568]
[1771331078374,0.47385995,85.329,85.31,0.46926568]
[1771331078556,0.36990531,85.327,85.31,0.46926568]
[1771331079181,0.36990531,85.327,85.301,0.46926568]
[1771331080600,0.36990531,85.327,85.284,19.34]
[1771331080601,11.72209262,85.309,85.273,0.5]
[1771331080882,4.31854365,85.3,85.273,0.5]
[1771331081468,4.31854365,85.29,85.264,0.5]
[1771331082580,4.31854365,85.29,85.26,0.2]
[1771331082770,11.72484142,85.289,85.26,0.2]
[1771331084365,4.31854365,85.28,85.26,0.2]
[1771331085772,4.31854365,85.27,85.26,0.2]
[1771331086785,11.72667495,85.276,85.26,0.2]
[1771331088582,4.31854365,85.28,85.261,0.5]
[1771331088786,4.31854365,85.29,85.262,0.5]
[1771331088985,11.72429155,85.293,85.262,0.5]
[1771331089185,4.31854365,85.31,85.271,0.5]
[1771331089776,4.31854365,85.32,85.281,0.5]
[1771331090988,11.71975716,85.326,85.291,0.5]
[1771331092773,11.71742263,85.343,85.3,4.31854365]
[1771331093096,11.71797185,85.339,85.303,0.5]
[1771331094493,11.71797185,85.339,85.311,0.5]
[1771331094700,11.71673618,85.348,85.321,0.5]
[1771331100499,0.48988878,85.347,85.31,4.31854365]
[1771331100684,0.48988878,85.339,85.31,4.31854365]
[1771331102193,0.48988878,85.319,85.28,4.31854365]
[1771331102689,0.48988878,85.317,85.283,0.48637711]
[1771331103898,0.48988878,85.317,85.291,0.48637711]
[1771331105799,0.48988878,85.315,85.291,0.48637711]
[1771331106402,0.48988878,85.315,85.293,0.48637711]
[1771331108512,12.21129441,85.314,85.293,0.48637711]
[1771331109222,0.48988878,85.313,85.293,0.48637711]
[1771331110509,11.72168042,85.312,85.293,0.48637711]
[1771331111419,0.48988878,85.311,85.293,0.48637711]
[1771331113102,0.48988878,85.309,85.283,0.48637711]
[1771331113297,0.48988878,85.309,85.271,0.48637711]
[1771331114310,0.46744605,85.299,85.271,0.48637711]
[1771331115820,0.46744605,85.297,85.271,0.48637711]
[1771331118144,0.46744605,85.295,85.271,0.48637711]
[1771331121327,0.46744605,85.289,85.271,0.48637711]
[1771331121514,0.46744605,85.289,85.261,0.47135824]
[1771331123533,11.72497889,85.288,85.261,0.47135824]
[1771331123720,29.31038525,85.294,85.263,0.47135824]
[1771331123721,0.46744605,85.292,85.263,0.47135824]
[1771331123928,4.3246807,85.29,85.263,0.47135824]
[1771331124112,0.46744605,85.289,85.263,0.47135824]
[1771331126526,0.46744605,85.287,85.263,0.47135824]
[1771331130613,12.19262506,85.287,85.265,0.47135824]
[1771331130814,0.46744605,85.286,85.265,0.47135824]
[1771331132919,11.72517901,85.287,85.265,0.47135824]
[1771331133527,11.72407562,85.295,85.271,0.47135824]
[1771331135023,0.46744605,85.302,85.271,0.47135824]
[1771331136829,12.19063804,85.301,85.271,0.47135824]
[1771331137237,12.19063804,85.301,85.273,0.47135824]
[1771331143820,0.46744605,85.3,85.273,0.47135824]
[1771331144145,0.46744605,85.299,85.273,0.47135824]
[1771331145233,0.49446093,85.297,85.273,0.47135824]
[1771331150752,0.49446093,85.289,85.268,0.47230688]
[1771331151835,11.72387919,85.296,85.268,0.47230688]
[1771331152146,18.14,85.316,85.271,0.47126774]
[1771331152147,0.49040269,85.306,85.271,0.47126774]
[1771331153230,0.49040269,85.305,85.273,0.47126774]
[1771331157245,0.49040269,85.305,85.275,0.47126774]
[1771331157441,11.7227797,85.304,85.275,0.47126774]
[1771331157652,0.49040269,85.303,85.275,0.47126774]
[1771331157855,11.7227797,85.304,85.275,0.47126774]
[1771331158036,0.49040269,85.303,85.275,0.47126774]
[1771331160555,12.21345724,85.302,85.275,0.47126774]
[1771331160756,0.49040269,85.302,85.277,0.47126774]
[1771331161954,11.72256923,85.306,85.277,0.47126774]
[1771331162340,12.21297192,85.306,85.277,0.47126774]
[1771331163235,0.49040269,85.305,85.279,0.47126774]
[1771331164150,16.04676198,85.31,85.279,0.47126774]
[1771331164352,16.53716467,85.31,85.279,0.47126774]
[1771331164652,0.49040269,85.315,85.281,0.47126774]
[1771331165054,11.72140563,85.314,85.281,0.47126774]
[1771331165355,0.49040269,85.309,85.283,0.47126774]
[1771331169245,0.49040269,85.299,85.27,0.47126774]
[1771331169451,0.49040269,85.299,85.271,0.47126774]
[1771331170043,0.49040269,85.307,85.271,0.47126774]
[1771331172043,0.49040269,85.305,85.272,0.47126774]
[1771331173257,12.21228734,85.311,85.272,0.47126774]
[1771331173769,0.49040269,85.31,85.272,0.47126774]
[1771331175063,0.47389869,85.308,85.274,0.48349582]
[1771331177355,11.72236744,85.307,85.276,0.48349582]
[1771331177669,4.32657926,85.32,85.275,11.72676634]
[1771331177670,0.47389869,85.316,85.281,0.48349582]
[1771331178555,11.72052612,85.321,85.291,0.48349582]
[1771331178956,4.32657926,85.35,85.282,41.0403133]
[1771331178957,0.47389869,85.335,85.301,0.48349582]
[1771331179157,0.47389869,85.329,85.301,0.48349582]
[1771331180357,0.47389869,85.319,85.295,0.48349582]
[1771331180663,0.47389869,85.319,85.297,0.48349582]
[1771331184067,0.47389869,85.319,85.299,0.48349582]
[1771331188370,0.47389869,85.319,85.301,0.48349582]
[1771331188571,16.04587354,85.33,85.301,0.48349582]
[1771331188952,11.71929428,85.33,85.301,0.48349582]
[1771331189558,29.29184593,85.348,85.311,0.48694934]
[1771331189767,11.71687346,85.347,85.311,0.48694934]
[1771331189963,4.32657926,85.38,85.341,0.48694934]